bitfinex-derivatives/quotes_BTCF0:USTF0_20250716
["timestamp","ask_amount","ask_price","bid_price","bid_amount"]
[1752632160059,0.1820764,117640.0,117630.0,1.4098599]
[1752632160665,0.1820764,117640.0,117630.0,1.1233209]
[1752632160962,0.1820764,117640.0,117630.0,1.4098599]
[1752632161659,0.005,117640.0,117630.0,1.4098599]
[1752632161866,0.11172377,117640.0,117630.0,1.4098599]
[1752632162262,0.11172377,117640.0,117630.0,1.6963989]
[1752632162461,0.11172377,117640.0,117630.0,1.4098599]
[1752632162966,0.18796153,117640.0,117630.0,1.1233209]
[1752632163168,0.08123776,117640.0,117630.0,1.4098599]
[1752632163355,0.08839776,117640.0,117630.0,1.4098599]
[1752632164065,0.08601776,117640.0,117630.0,1.1233209]
[1752632164359,0.08601776,117640.0,117630.0,1.4098599]
[1752632165263,0.08601776,117640.0,117630.0,1.1233209]
[1752632165466,0.08601776,117640.0,117630.0,1.4098599]
[1752632166366,0.00978,117640.0,117630.0,1.4098599]
[1752632167059,0.11650377,117640.0,117630.0,1.4098599]
[1752632167459,0.00978,117640.0,117630.0,1.4098599]
[1752632169170,0.00978,117640.0,117630.0,1.7706599]
[1752632169966,0.01216,117640.0,117630.0,0.8183399]
[1752632170167,0.01216,117640.0,117630.0,1.4111399]
[1752632172165,0.01216,117640.0,117630.0,0.8183399]
[1752632172370,0.1821471,117640.0,117630.0,1.4114199]
[1752632172670,0.2889389,117640.0,117630.0,1.4118599]
[1752632173369,0.2889389,117640.0,117630.0,0.8183399]
[1752632173570,0.1821471,117640.0,117630.0,1.4117799]
[1752632173766,0.1821471,117640.0,117630.0,0.5318009]
[1752632173968,0.2889389,117640.0,117630.0,0.1710009]
[1752632174168,0.6497389,117640.0,117630.0,0.7643609]
[1752632174364,0.69551955,117640.0,117630.0,0.7643609]
[1752632174564,0.33471955,117640.0,117630.0,0.7643609]
[1752632175969,0.1821471,117640.0,117630.0,0.7643609]
[1752632177271,0.28891668,117640.0,117630.0,0.7643609]
[1752632178370,0.93625568,117640.0,117630.0,0.001]
[1752632178571,0.8294861,117640.0,117630.0,0.001]
[1752632179874,0.98205855,117640.0,117630.0,0.001]
[1752632180173,0.98205855,117640.0,117630.0,0.00043277]
[1752632180676,1.15207455,117640.0,117630.0,0.00043277]
[1752632181271,0.1724104,117610.0,117600.0,0.5310351]
[1752632181474,0.2534181,117610.0,117600.0,0.1700351]
[1752632181668,0.1771904,117610.0,117600.0,0.7638751]
[1752632182163,0.28390953,117610.0,117600.0,0.7638751]
[1752632182474,0.38915818,117610.0,117600.0,0.170045]
[1752632182771,0.43944888,117610.0,117600.0,0.595]
[1752632183373,0.43944888,117610.0,117600.0,0.001]
[1752632183578,0.44803901,117610.0,117600.0,0.001]
[1752632183869,0.172425,117600.0,117590.0,1.4964538]
[1752632184073,0.25336645,117600.0,117590.0,1.4964538]
[1752632184372,0.25333844,117600.0,117590.0,1.4964538]
[1752632184564,0.25333844,117600.0,117590.0,0.3608]
[1752632184765,0.25333844,117600.0,117590.0,0.5308595]
[1752632185167,0.177205,117600.0,117590.0,0.5308595]
[1752632185573,0.1700595,117590.0,117580.0,2.4024317]
[1752632185769,0.27253755,117590.0,117580.0,2.9963517]
[1752632185973,0.10247805,117590.0,117580.0,2.9963517]
[1752632186374,0.27253755,117590.0,117580.0,2.9963517]
[1752632186570,0.25729034,117590.0,117570.0,1.9084232]
[1752632186772,0.23809797,117580.0,117570.0,2.0785012]
[1752632186974,0.23809797,117580.0,117570.0,2.6730612]
[1752632187174,0.23809797,117580.0,117570.0,2.7104822]
[1752632187381,0.177234,117580.0,117570.0,2.9970212]
[1752632187678,0.00716,117580.0,117570.0,2.9970212]
[1752632187884,0.24009787,117580.0,117570.0,2.9980212]
[1752632189685,0.07002397,117580.0,117570.0,2.9980212]
[1752632191788,0.00916,117580.0,117570.0,2.9980212]
[1752632191985,0.07002397,117580.0,117570.0,2.9980212]
[1752632192481,0.00678,117580.0,117570.0,2.9980212]
[1752632192786,0.002,117580.0,117570.0,2.9980212]
[1752632193179,0.00654,117580.0,117570.0,2.9980212]
[1752632193688,0.00654,117580.0,117570.0,2.7114822]
[1752632193991,0.00654,117580.0,117570.0,2.9980212]
[1752632194177,0.00654,117580.0,117570.0,2.4034612]
[1752632194381,0.179054,117580.0,117570.0,2.914577]
[1752632194577,0.179054,117580.0,117570.0,1.414577]
[1752632194985,0.00898,117580.0,117570.0,1.414577]
[1752632196689,0.00654,117580.0,117570.0,1.414577]
[1752632196878,0.002,117580.0,117570.0,1.128038]
[1752632197081,0.002,117580.0,117570.0,1.414577]
[1752632198392,0.00654,117580.0,117570.0,1.414577]
[1752632200690,0.002,117580.0,117570.0,1.414577]
[1752632201489,0.00654,117580.0,117570.0,1.128038]
[1752632201688,0.00654,117580.0,117570.0,1.414577]
[1752632202188,0.1766139,117580.0,117570.0,1.414577]
[1752632202388,0.00654,117580.0,117570.0,1.414577]
[1752632203192,0.176614,117580.0,117570.0,1.128038]
[1752632203398,0.176614,117580.0,117570.0,0.818417]
[1752632203587,0.176614,117580.0,117570.0,1.415137]
[1752632204292,0.176614,117580.0,117570.0,0.818417]
[1752632204494,0.176614,117580.0,117570.0,1.414937]
[1752632204797,0.00654,117580.0,117570.0,1.414937]
[1752632207195,0.06740397,117580.0,117570.0,1.414937]
[1752632207597,0.06740397,117580.0,117570.0,1.414417]
[1752632207797,0.06740397,117580.0,117570.0,1.414337]
[1752632208596,0.06286397,117580.0,117570.0,1.414337]
[1752632209496,0.23747797,117580.0,117570.0,1.414337]
[1752632210798,0.23991797,117580.0,117570.0,1.413897]
[1752632212198,0.179054,117580.0,117570.0,1.413897]
[1752632212600,0.179054,117580.0,117570.0,0.818417]
[1752632212798,0.25516518,117580.0,117570.0,1.413897]
[1752632214695,0.08509118,117580.0,117570.0,1.413897]
[1752632215201,0.25516508,117580.0,117570.0,1.413897]
[1752632215397,0.1790539,117580.0,117570.0,1.413897]
[1752632216695,0.1790539,117580.0,117570.0,2.913897]
[1752632216995,0.1790539,117580.0,117570.0,2.318417]
[1752632217204,0.1790539,117580.0,117570.0,2.912897]
[1752632217397,0.28577303,117580.0,117570.0,2.912817]
[1752632217801,0.28577303,117580.0,117570.0,2.318417]
[1752632217996,0.28577303,117580.0,117570.0,2.912817]
[1752632219808,0.28577303,117580.0,117570.0,2.318417]
[1752632220007,0.28577303,117580.0,117570.0,2.912737]
[1752632220208,0.11569913,117580.0,117570.0,2.626198]
[1752632220409,0.11569913,117580.0,117570.0,2.912737]
[1752632220807,0.11325913,117580.0,117570.0,2.912737]
[1752632221001,0.10871913,117580.0,117570.0,2.912737]
[1752632225614,0.002,117580.0,117570.0,2.626198]
[1752632225811,0.002,117580.0,117570.0,2.912737]
[1752632226606,0.07839922,117580.0,117570.0,2.912737]
[1752632226814,0.002,117580.0,117570.0,2.912737]
[1752632227000,0.07839226,117580.0,117570.0,2.912737]
[1752632227611,0.002,117580.0,117570.0,2.912737]
[1752632228819,0.06310206,117580.0,117570.0,2.912737]
[1752632229319,0.06310206,117580.0,117570.0,2.626198]
[1752632229520,0.06310206,117580.0,117570.0,2.912737]
[1752632229717,0.06310206,117580.0,117570.0,2.318417]
[1752632229916,0.06310206,117580.0,117570.0,2.921297]
[1752632230709,0.06310206,117580.0,117570.0,2.634758]
[1752632230915,0.06310206,117580.0,117570.0,2.921297]
[1752632232119,0.06310206,117580.0,117570.0,2.634758]
[1752632232620,0.06310206,117580.0,117570.0,2.921297]
[1752632233211,0.06310206,117580.0,117570.0,1.421657]
[1752632233417,0.002,117580.0,117570.0,1.421657]
[1752632233615,0.002,117580.0,117570.0,2.921657]
[1752632234320,0.07839226,117580.0,117570.0,2.921657]
[1752632234521,0.002,117580.0,117570.0,2.921657]
[1752632234820,0.07839226,117580.0,117570.0,2.318417]
[1752632235022,0.07839226,117580.0,117570.0,2.921257]
[1752632235519,0.002,117580.0,117570.0,1.421257]
[1752632236023,0.002,117580.0,117570.0,1.134718]
[1752632236225,0.002,117580.0,117570.0,1.421257]
[1752632236522,0.07839226,117580.0,117570.0,1.421257]
[1752632241128,0.002,117580.0,117570.0,1.421257]
[1752632244122,0.06305304,117580.0,117570.0,1.421257]
[1752632247336,0.06305304,117580.0,117570.0,0.818417]
[1752632247531,0.88785564,117580.0,117570.0,0.001]
[1752632247729,0.8268026,117580.0,117570.0,0.1710881]
[1752632247933,0.93352173,117580.0,117570.0,0.1710881]
[1752632248838,0.64698273,117580.0,117570.0,0.1710881]
[1752632249038,0.28618273,117580.0,117570.0,0.1710881]
[1752632249230,0.64698273,117580.0,117570.0,0.1710881]
[1752632249436,0.64698273,117580.0,117570.0,0.001]
[1752632249631,1.35362573,117580.0,117570.0,0.001]
[1752632249831,1.45362573,117580.0,117570.0,0.0004765]
[1752632250038,1.3469066,117580.0,117570.0,0.0004765]
[1752632250331,1.45369135,117580.0,117570.0,0.00015985]
[1752632250733,0.1725381,117570.0,117560.0,0.1701004]
[1752632251037,0.57045185,117570.0,117560.0,0.1701004]
[1752632252036,0.57045185,117570.0,117560.0,0.1741004]
[1752632252037,0.57145185,117570.0,117560.0,0.1741004]
[1752632252237,0.93225185,117570.0,117560.0,0.1741004]
[1752632253046,0.93225185,117570.0,117560.0,0.004]
[1752632253745,0.8254671,117570.0,117560.0,0.004]
[1752632253944,0.8254671,117570.0,117560.0,0.1741025]
[1752632254148,0.8254671,117570.0,117560.0,0.004]
[1752632254742,0.5389281,117570.0,117560.0,0.004]
[1752632254946,0.5389281,117570.0,117560.0,0.1741021]
[1752632255250,1.4333471,117570.0,117560.0,0.1741021]
[1752632256151,1.4333471,117570.0,117560.0,0.004]
[1752632256346,1.6034671,117570.0,117560.0,0.004]
[1752632256553,1.10237185,117570.0,117560.0,0.004]
[1752632256748,1.70997185,117570.0,117560.0,0.004]
[1752632257857,1.67935168,117570.0,117560.0,0.004]
[1752632258352,0.9955871,117570.0,117560.0,0.004]
[1752632258556,1.6031471,117570.0,117560.0,0.004]
[1752632260354,1.6031471,117570.0,117560.0,0.00130684]
[1752632261050,0.1771567,117550.0,117540.0,1.44630744]
[1752632261243,0.91948529,117550.0,117540.0,1.44630744]
[1752632261448,0.8434426,117550.0,117540.0,1.44630744]
[1752632261650,1.97760149,117550.0,117540.0,1.44630744]
[1752632261948,1.55757748,117550.0,117540.0,1.44630744]
[1752632262455,1.27103848,117550.0,117540.0,1.44630744]
[1752632262651,1.55757748,117550.0,117540.0,1.44630744]
[1752632263352,1.72772149,117550.0,117540.0,1.44630744]
[1752632263544,0.0850691,117540.0,117520.0,0.4481782]
[1752632263752,0.08300231,117540.0,117530.0,0.8670872]
[1752632263952,0.07841231,117540.0,117530.0,0.8670872]
[1752632264147,0.06780528,117540.0,117530.0,0.8670872]
[1752632264350,0.13508601,117540.0,117530.0,0.5380255]
[1752632264546,0.59175601,117540.0,117530.0,0.5309455]
[1752632264754,0.13708601,117540.0,117530.0,0.5380255]
[1752632265054,0.1300333,117540.0,117530.0,1.1457055]
[1752632265254,0.1280333,117540.0,117530.0,1.4322445]
[1752632265455,0.1340333,117540.0,117530.0,1.4322445]
[1752632265959,0.1410733,117540.0,117530.0,1.4322445]
[1752632266456,0.1410733,117540.0,117530.0,0.5380255]
[1752632266850,0.1410733,117540.0,117530.0,0.8245645]
[1752632267049,0.1350733,117540.0,117530.0,0.8245645]
[1752632267253,0.07732073,117540.0,117530.0,0.5380255]
[1752632267653,0.19892711,117540.0,117530.0,0.5380255]
[1752632268058,0.17922561,117540.0,117530.0,0.8245645]
[1752632268259,0.18122561,117540.0,117530.0,0.8245645]
[1752632268558,0.07473073,117540.0,117530.0,0.8245645]
[1752632269460,0.07932073,117540.0,117530.0,0.8245645]
[1752632269658,0.07932073,117540.0,117530.0,0.5380255]
[1752632270256,0.07932073,117540.0,117530.0,0.8245645]
[1752632270751,0.07932073,117540.0,117530.0,0.5380255]
[1752632270951,0.18581561,117540.0,117530.0,0.5380255]
[1752632271156,0.18581561,117540.0,117530.0,0.8245645]
[1752632271357,0.07932073,117540.0,117530.0,0.8245645]
[1752632271758,0.07473073,117540.0,117530.0,0.8245645]
[1752632272162,0.18122561,117540.0,117530.0,0.5380255]
[1752632272558,0.07473073,117540.0,117530.0,0.5380255]
[1752632272957,0.07473073,117540.0,117530.0,0.8245645]
[1752632273161,0.07473073,117540.0,117530.0,0.5380255]
[1752632273360,0.07473073,117540.0,117530.0,0.8245645]
[1752632273559,0.07473073,117540.0,117530.0,0.5380255]
[1752632273761,0.07473073,117540.0,117530.0,0.8245645]
[1752632273967,0.07473073,117540.0,117530.0,0.5380255]
[1752632274258,0.07228073,117540.0,117530.0,0.8245645]
[1752632275053,0.07228073,117540.0,117530.0,0.5380255]
[1752632275254,0.07473073,117540.0,117530.0,0.8245645]
[1752632277369,0.13554877,117540.0,117530.0,0.8245645]
[1752632277775,0.14013877,117540.0,117530.0,0.8245645]
[1752632278071,0.14013877,117540.0,117530.0,0.5380255]
[1752632278377,0.31026947,117540.0,117530.0,0.8245642]
[1752632278671,0.31026947,117540.0,117530.0,1.4318842]
[1752632278869,0.14013877,117540.0,117530.0,1.4318842]
[1752632279474,0.07932073,117540.0,117530.0,1.4318842]
[1752632279962,0.07932073,117540.0,117530.0,1.1453452]
[1752632280161,0.07932073,117540.0,117530.0,1.4318842]
[1752632282375,0.07932073,117540.0,117530.0,1.1453452]
[1752632282577,0.07932073,117540.0,117530.0,1.4318842]
[1752632283674,0.14013877,117540.0,117530.0,1.4318842]
[1752632285477,0.14013877,117540.0,117530.0,0.8245642]
[1752632285677,0.14013877,117540.0,117530.0,1.4308042]
[1752632286182,0.13554877,117540.0,117530.0,1.4308042]
[1752632287182,0.07473073,117540.0,117530.0,1.4308042]
[1752632288078,0.17877561,117540.0,117530.0,1.4308042]
[1752632289785,0.07228073,117540.0,117530.0,1.4308042]
[1752632292079,0.07228073,117540.0,117530.0,1.1442652]
[1752632292284,0.07228073,117540.0,117530.0,0.8245642]
[1752632292488,0.07228073,117540.0,117530.0,1.4294842]
[1752632292978,0.07228073,117540.0,117530.0,0.8245642]
[1752632293179,0.07228073,117540.0,117530.0,1.4294842]
[1752632294184,0.07228073,117540.0,117530.0,1.4294042]
[1752632294581,0.07477073,117540.0,117530.0,1.4294042]
[1752632294992,0.24490193,117540.0,117530.0,0.8245642]
[1752632295189,0.24490193,117540.0,117530.0,1.4291242]
[1752632295485,0.24490193,117540.0,117530.0,1.1425852]
[1752632295683,0.24490193,117540.0,117530.0,1.4288842]
[1752632296185,0.24963193,117540.0,117530.0,1.4218042]
[1752632296486,0.1823512,117540.0,117530.0,1.4218042]
[1752632296684,0.1823512,117540.0,117530.0,1.4240742]
[1752632297085,0.01222,117540.0,117530.0,1.4240742]
[1752632297284,0.46889,117540.0,117530.0,0.00227]
[1752632297788,0.1773654,117530.0,117520.0,1.1778144]
[1752632297990,0.284079,117530.0,117520.0,1.1778144]
[1752632298780,0.1139336,117530.0,117520.0,1.4685834]
[1752632298981,0.1067136,117530.0,117520.0,1.4685834]
[1752632300082,0.1097136,117530.0,117520.0,1.4685834]
[1752632300287,0.1144436,117530.0,117520.0,1.4685834]
[1752632300583,0.30594006,117530.0,117520.0,1.1820444]
[1752632300789,0.59247906,117530.0,117520.0,1.16267249]
[1752632300987,0.59247906,117530.0,117520.0,1.44921149]
[1752632300988,0.30594006,117530.0,117520.0,1.44921149]
[1752632302490,0.30594006,117530.0,117520.0,1.16267249]
[1752632302691,0.19922646,117530.0,117520.0,1.44921149]
[1752632302882,0.02908106,117530.0,117520.0,1.44921149]
[1752632303078,0.19922676,117530.0,117520.0,1.44921149]
[1752632304190,0.19922676,117530.0,117520.0,1.16267249]
[1752632304385,0.02908106,117530.0,117520.0,1.44921149]
[1752632306083,0.10524666,117530.0,117520.0,1.44921149]
[1752632306381,0.02908106,117530.0,117520.0,1.44921149]
[1752632306780,0.30594016,117530.0,117520.0,1.16267249]
[1752632307090,0.13579466,117530.0,117520.0,1.16267249]
[1752632307390,0.13579466,117530.0,117520.0,1.33425299]
[1752632307590,0.02908106,117530.0,117520.0,1.33425299]
[1752632308181,0.19922666,117530.0,117520.0,1.33425299]
[1752632309284,0.02908106,117530.0,117520.0,1.33425299]
[1752632309784,0.02186106,117530.0,117520.0,0.73236299]
[1752632309989,0.09796703,117530.0,117520.0,1.04886399]
[1752632310189,0.09796703,117530.0,117520.0,1.62194199]
[1752632311594,0.02186106,117530.0,117520.0,1.62194199]
[1752632312088,0.07610597,117540.0,117530.0,0.1721155]
[1752632312291,0.10654835,117550.0,117540.0,0.172101]
[1752632312495,0.27872779,117560.0,117550.0,0.1720866]
[1752632312696,0.27872779,117560.0,117550.0,1.4232956]
[1752632312997,0.49851602,117560.0,117550.0,1.4232956]
[1752632313289,0.38877134,117560.0,117550.0,1.4232956]
[1752632313492,0.39102134,117560.0,117550.0,1.4232956]
[1752632313894,0.34848444,117560.0,117550.0,1.4232956]
[1752632314090,0.17838244,117560.0,117550.0,1.4232956]
[1752632314286,0.28487249,117560.0,117550.0,1.4232956]
[1752632314485,0.13230004,117560.0,117550.0,1.4232956]
[1752632314689,0.13205004,117560.0,117550.0,1.4242956]
[1752632316098,0.13105004,117560.0,117550.0,1.4282956]
[1752632316300,0.14526474,117560.0,117550.0,1.4282956]
[1752632316597,0.18351856,117560.0,117550.0,1.4279756]
[1752632316904,0.07702851,117560.0,117550.0,1.4279756]
[1752632317400,0.001,117560.0,117550.0,1.4279756]
[1752632317597,0.001,117560.0,117550.0,1.4275756]
[1752632319194,0.001,117560.0,117550.0,1.1410366]
[1752632319393,0.001,117560.0,117550.0,1.4275756]
[1752632319900,0.07702851,117560.0,117550.0,1.4275756]
[1752632321001,0.001,117560.0,117550.0,1.4275756]
[1752632321202,0.07702851,117560.0,117550.0,1.4275756]
[1752632324095,0.001,117560.0,117550.0,1.4275756]
[1752632324506,0.06172804,117560.0,117550.0,1.4275756]
[1752632325206,0.001,117560.0,117550.0,1.4275756]
[1752632325609,0.23182401,117560.0,117550.0,1.4275756]
[1752632325804,0.001,117560.0,117550.0,1.4275756]
[1752632326205,0.48409628,117560.0,117550.0,0.00697]
[1752632326400,1.02741484,117560.0,117550.0,0.606]
[1752632326704,0.95138633,117560.0,117550.0,0.005]
[1752632326906,0.84489628,117560.0,117550.0,0.005]
[1752632327309,0.95138633,117560.0,117550.0,0.60588]
[1752632327808,0.84489628,117560.0,117550.0,0.60588]
[1752632328002,0.84489628,117560.0,117550.0,0.60576]
[1752632328197,0.84489628,117560.0,117550.0,0.005]
[1752632328400,0.95138633,117560.0,117550.0,0.60568]
[1752632328598,0.95138633,117560.0,117550.0,0.60556]
[1752632329006,0.95138633,117560.0,117550.0,0.005]
[1752632329206,0.1772915,117540.0,117530.0,0.27417763]
[1752632329396,0.25315781,117540.0,117530.0,0.18911673]
[1752632329602,0.1772915,117540.0,117530.0,0.78955673]
[1752632330108,0.48310785,117540.0,117530.0,0.170146]
[1752632330314,0.1773062,117530.0,117520.0,0.2146556]
[1752632330506,0.1773062,117530.0,117520.0,0.8148956]
[1752632330709,0.25317157,117530.0,117520.0,0.8148956]
[1752632330912,0.25317157,117530.0,117520.0,1.1014346]
[1752632331615,0.08302537,117530.0,117520.0,1.1014346]
[1752632331816,0.00716,117530.0,117520.0,1.1014346]
[1752632332516,0.01416,117530.0,117520.0,1.1026646]
[1752632333412,0.09002537,117530.0,117520.0,1.1026646]
[1752632333917,0.09002537,117530.0,117520.0,1.4634646]
[1752632334314,0.62687537,117530.0,117520.0,0.60024]
[1752632334521,0.1724105,117520.0,117510.0,0.9045639]
[1752632334711,0.1773208,117520.0,117510.0,1.5049639]
[1752632335016,0.00716,117520.0,117510.0,1.5049639]
[1752632335313,0.26563541,117520.0,117510.0,1.5049639]
[1752632335514,0.02645324,117520.0,117510.0,1.5049639]
[1752632335710,0.19661384,117520.0,117510.0,1.5049639]
[1752632335910,0.02645324,117520.0,117510.0,1.5049639]
[1752632336308,0.19861384,117520.0,117510.0,1.5050039]
[1752632337220,0.19861384,117520.0,117510.0,1.2184649]
[1752632337412,0.19861384,117520.0,117510.0,1.1759216]
[1752632337612,0.19861384,117520.0,117510.0,1.4624606]
[1752632337813,0.19861384,117520.0,117510.0,1.1759216]
[1752632338012,0.19861384,117520.0,117510.0,1.4624606]
[1752632339218,0.62598374,117520.0,117500.0,0.7374325]
[1752632339519,0.35026704,117520.0,117510.0,0.59992]
[1752632339716,0.26535704,117520.0,117510.0,0.172145]
[1752632339922,0.26535704,117520.0,117510.0,0.771785]
[1752632340216,0.26535704,117520.0,117510.0,0.60161]
[1752632340421,0.26435704,117520.0,117510.0,0.7717851]
[1752632340917,0.26535704,117520.0,117510.0,0.7717851]
[1752632341728,0.26535704,117520.0,117510.0,1.0583241]
[1752632342218,0.26535704,117520.0,117510.0,0.888149]
[1752632342817,0.26535704,117520.0,117510.0,0.60161]
[1752632343019,0.177125,117510.0,117500.0,0.96693]
[1752632343218,0.177125,117510.0,117500.0,1.4236585]
[1752632344924,0.00795,117510.0,117500.0,1.4236585]
[1752632346116,0.1781251,117510.0,117500.0,1.4236585]
[1752632346622,0.001,117510.0,117500.0,1.7856885]
[1752632346820,0.001,117510.0,117500.0,1.1865285]
[1752632347024,0.08586314,117520.0,117510.0,0.1707751]
[1752632347319,0.09039314,117520.0,117510.0,0.8181141]
[1752632347920,0.09281314,117520.0,117510.0,0.8181141]
[1752632348323,0.09481314,117520.0,117510.0,0.8181141]
[1752632350621,0.09239314,117520.0,117510.0,0.8181141]
[1752632350823,0.09481314,117520.0,117510.0,1.4170041]
[1752632351222,0.09481314,117520.0,117510.0,1.4172341]
[1752632352225,0.26497404,117520.0,117510.0,1.4172341]
[1752632352816,0.34079359,117520.0,117510.0,1.4172341]
[1752632353025,0.34079359,117520.0,117510.0,1.4170041]
[1752632354728,0.34079359,117520.0,117510.0,0.8178841]
[1752632354929,0.34079359,117520.0,117510.0,1.4162841]
[1752632355126,0.26497404,117520.0,117510.0,1.4162841]
[1752632355428,0.34079359,117520.0,117510.0,1.4162443]
[1752632355630,0.34079359,117520.0,117510.0,1.0554443]
[1752632356321,0.1771253,117510.0,117500.0,0.005]
[1752632356523,1.49905594,117510.0,117500.0,0.00537]
[1752632356924,1.4230243,117510.0,117500.0,0.00537]
[1752632357127,1.1364853,117510.0,117500.0,0.1755598]
[1752632357631,0.5379253,117510.0,117500.0,0.07613336]
[1752632358130,0.5389253,117510.0,117500.0,0.00037]
[1752632359231,0.5389253,117510.0,117500.0,0.1705598]
[1752632360133,0.55219071,117510.0,117500.0,0.1705598]
[1752632360323,0.12767518,117510.0,117500.0,0.4570988]
[1752632360528,0.29785028,117510.0,117500.0,0.4570988]
[1752632360933,0.29785028,117510.0,117500.0,0.8178988]
[1752632361527,0.29785028,117510.0,117500.0,0.00037]
[1752632361734,0.1726095,117500.0,117490.0,1.5433032]
[1752632361932,0.30235407,117500.0,117490.0,1.5433032]
[1752632362635,0.02569863,117500.0,117490.0,1.5433032]
[1752632363031,0.13216457,117500.0,117490.0,1.5433032]
[1752632363231,0.30235417,117500.0,117490.0,1.5435332]
[1752632363432,0.30435417,117500.0,117490.0,1.5435332]
[1752632365939,0.30435417,117500.0,117490.0,1.1827332]
[1752632366138,0.30435417,117500.0,117490.0,1.5435332]
[1752632367541,0.19788823,117500.0,117490.0,1.5435332]
[1752632367735,0.19788823,117500.0,117490.0,0.8604516]
[1752632367936,0.19788823,117500.0,117490.0,1.4573716]
[1752632368141,0.19788823,117500.0,117490.0,1.0965716]
[1752632368648,0.00453,117490.0,117480.0,0.212765]
[1752632368949,0.177154,117490.0,117480.0,0.255689]
[1752632369143,0.177154,117490.0,117480.0,0.542228]
[1752632369745,0.25320283,117490.0,117480.0,0.542228]
[1752632370142,0.25520283,117490.0,117480.0,0.255689]
[1752632370339,0.465693,117490.0,117480.0,0.00037]
[1752632370548,0.25320283,117490.0,117480.0,0.00037]
[1752632370750,0.61500283,117490.0,117480.0,0.00037]
[1752632372054,0.90154183,117490.0,117480.0,0.00037]
[1752632372352,0.61500283,117490.0,117480.0,0.00037]
[1752632372751,0.61400283,117490.0,117480.0,0.00037]
[1752632372948,0.0024,117470.0,117450.0,0.4035654]
[1752632373151,0.1748174,117460.0,117450.0,0.5316571]
[1752632373348,0.1748174,117460.0,117450.0,1.4334761]
[1752632373544,0.1748174,117460.0,117450.0,1.0726809]
[1752632373744,0.1748174,117460.0,117450.0,1.263219]
[1752632374456,0.1798174,117460.0,117450.0,0.902419]
[1752632374650,0.24950802,117460.0,117450.0,0.902419]
[1752632374951,0.24950802,117460.0,117450.0,0.61588]
[1752632375256,0.24950802,117460.0,117450.0,0.902819]
[1752632375257,0.25190802,117460.0,117450.0,0.902819]
[1752632375559,0.25190802,117460.0,117450.0,0.902589]
[1752632375748,0.25190802,117460.0,117450.0,0.286909]
[1752632375947,0.1748464,117440.0,117430.0,0.36117]
[1752632376150,0.1772609,117430.0,117420.0,0.37872817]
[1752632376460,0.1772609,117430.0,117420.0,1.28198717]
[1752632376758,0.1772609,117430.0,117420.0,1.45229257]
[1752632376951,0.1772609,117430.0,117420.0,1.09149257]
[1752632377256,0.42729,117430.0,117420.0,0.61672]
[1752632377462,0.1772899,117410.0,117400.0,0.00294062]
[1752632377758,0.1745789,117390.0,117380.0,0.02291112]
[1752632377956,0.8219179,117390.0,117380.0,0.71665169]
[1752632378255,0.7057549,117390.0,117380.0,0.02775781]
[1752632378464,0.9922939,117390.0,117380.0,0.67611781]
[1752632378650,0.8219179,117390.0,117380.0,0.67611781]
[1752632378847,0.7057549,117390.0,117380.0,0.02775781]
[1752632379054,0.9922939,117390.0,117380.0,0.02775781]
[1752632379253,0.0024,117390.0,117380.0,0.68306781]
[1752632379452,0.3632,117400.0,117390.0,0.00695]
[1752632379653,0.0024,117400.0,117390.0,0.8257389]
[1752632379959,0.1703212,117410.0,117400.0,0.1703328]
[1752632380163,0.2129013,117410.0,117400.0,0.36323]
[1752632380352,0.1703212,117410.0,117400.0,1.01671]
[1752632380658,0.4885361,117420.0,117400.0,1.01671]
[1752632380659,0.2554702,117420.0,117410.0,0.00695]
[1752632380861,0.2128917,117420.0,117410.0,0.654289]
[1752632381161,0.1702936,117430.0,117420.0,0.00695]
[1752632381369,0.1702936,117430.0,117420.0,0.36775]
[1752632381658,0.1726936,117430.0,117420.0,0.00695]
[1752632381861,0.1726936,117430.0,117420.0,0.66371]
[1752632382462,0.1702936,117430.0,117420.0,0.66371]
[1752632383153,0.1736936,117430.0,117420.0,0.66323]
[1752632383349,0.1736936,117430.0,117420.0,0.34377638]
[1752632383652,0.1736936,117430.0,117420.0,0.66315]
[1752632384454,0.1736936,117430.0,117420.0,0.34377638]
[1752632385059,0.1736936,117430.0,117420.0,0.00695]
[1752632385461,0.5344936,117430.0,117420.0,0.00706878]
[1752632386158,0.1736936,117430.0,117420.0,0.00706878]
[1752632386358,0.5344936,117430.0,117420.0,0.00706878]
[1752632386565,0.87314998,117430.0,117420.0,0.00011878]
[1752632386767,0.5363236,117430.0,117420.0,0.00011878]
[1752632387161,0.87314998,117430.0,117420.0,0.00011878]
[1752632387463,0.1745349,117420.0,117410.0,0.00695]
[1752632387664,1.1901349,117420.0,117410.0,0.00695]
[1752632387958,0.1727049,117420.0,117410.0,0.00695]
[1752632388163,0.8272249,117420.0,117410.0,0.34377638]
[1752632388364,1.1880249,117420.0,117410.0,0.34377638]
[1752632388567,0.8272249,117420.0,117410.0,0.34377638]
[1752632389066,0.8272249,117420.0,117410.0,0.00695]
[1752632389452,1.1880249,117420.0,117410.0,0.00695]
[1752632389858,0.1703197,117410.0,117400.0,0.01900984]
[1752632390057,0.1703487,117390.0,117380.0,0.36323]
[1752632390266,0.24559399,117390.0,117370.0,0.71274236]
[1752632390561,1.22229499,117390.0,117380.0,0.08071922]
[1752632390863,1.41942582,117390.0,117380.0,1.58071922]
[1752632391060,1.41942582,117390.0,117380.0,0.4175456]
[1752632391256,1.41942582,117390.0,117380.0,0.00243]
[1752632391462,0.1703777,117370.0,117360.0,2.00721278]
[1752632391769,0.20760399,117370.0,117360.0,0.00243]
[1752632391968,0.40473482,117370.0,117360.0,0.00243]
[1752632392169,0.40473482,117370.0,117360.0,0.00695]
[1752632392359,0.40473482,117370.0,117360.0,0.34377638]
[1752632392667,0.76553482,117370.0,117360.0,0.00243]
[1752632393067,0.76553482,117370.0,117360.0,0.50964848]
[1752632393362,0.56840399,117370.0,117360.0,0.1773421]
[1752632393562,0.56840399,117370.0,117360.0,0.00695]
[1752632393965,0.81102656,117370.0,117360.0,0.00695]
[1752632394263,0.81102656,117370.0,117360.0,0.00243]
[1752632394465,0.81102656,117370.0,117350.0,0.2129944]
[1752632394466,0.177362,117360.0,117350.0,0.2154244]
[1752632394665,0.86037829,117360.0,117350.0,0.2199444]
[1752632394869,1.05654564,117360.0,117350.0,0.2199444]
[1752632395666,1.20746286,117360.0,117350.0,0.2199444]
[1752632396069,0.35156551,117360.0,117350.0,0.2199444]
[1752632396256,0.18117351,117360.0,117350.0,0.91757078]
[1752632396462,0.18117351,117360.0,117350.0,1.1623118]
[1752632396658,0.18117351,117360.0,117350.0,1.2049129]
[1752632396862,0.18117351,117360.0,117350.0,0.86808652]